bitfinex/quotes_ETHUSD_20230113
["timestamp","ask_amount","ask_price","bid_price","bid_amount"]
[1673610499047,54.45734207,1408.7,1408.6,8.93e-06]
[1673610499263,54.98984207,1408.7,1408.6,8.93e-06]
[1673610499475,55.6969707,1408.7,1408.6,8.93e-06]
[1673610500348,6.246,1408.6,1408.4,0.14810718]
[1673610500566,66.72683272,1408.5,1408.4,0.14810718]
[1673610500720,67.02283272,1408.5,1408.4,0.14810718]
[1673610501288,75.90203272,1408.5,1408.4,7.18e-06]
[1673610501455,77.10603272,1408.5,1408.2,0.15872108]
[1673610501781,32.649,1408.3,1408.2,0.15872108]
[1673610501992,40.37272599,1408.3,1408.2,0.15872108]
[1673610502349,36.12672599,1408.3,1408.2,0.15872108]
[1673610502519,10.77308272,1408.3,1408.2,0.15872108]
[1673610502928,7.16675,1408.3,1408.2,0.15872108]
[1673610503341,17.87383272,1408.3,1408.2,0.15872108]
[1673610503706,24.97458272,1408.3,1408.2,0.15872108]
[1673610503881,32.65808699,1408.3,1408.2,0.15872108]
[1673610505106,25.20458272,1408.3,1408.2,0.15872108]
[1673610505655,14.4975,1408.3,1408.2,0.15872108]
[1673610506074,21.59825,1408.3,1408.2,0.15872108]
[1673610506407,25.20458272,1408.3,1408.2,0.15872108]
[1673610507563,7.16675,1408.3,1408.2,0.15872108]
[1673610508018,14.2675,1408.3,1408.2,0.15872108]
[1673610508227,17.87383272,1408.3,1408.2,0.15872108]
[1673610508616,25.20458272,1408.3,1408.2,0.15872108]
[1673610509023,32.68108699,1408.3,1408.2,0.15872108]
[1673610509379,28.43508699,1408.3,1408.2,0.15872108]
[1673610509589,42.43508699,1408.3,1408.2,0.15872108]
[1673610509912,28.43508699,1408.3,1408.2,0.15872108]
[1673610510351,32.68108699,1408.3,1408.2,0.15872108]
[1673610510561,44.85468699,1408.3,1408.1,0.14936179]
[1673610510777,25.88314142,1408.2,1408.1,0.14936179]
[1673610511080,47.25292142,1408.2,1408.1,0.14936179]
[1673610511305,69.69902142,1408.2,1408.1,0.14936179]
[1673610512081,51.45302142,1408.2,1408.1,0.14936179]
[1673610512406,54.72229999,1408.2,1408.1,0.14936179]
[1673610513241,54.18959999,1408.2,1408.1,0.14936179]
[1673610513445,72.43559999,1408.2,1408.1,0.14936179]
[1673610516091,85.28659999,1408.2,1408.0,0.17908149]
[1673610516302,18.76932998,1408.1,1408.0,0.17908149]
[1673610516536,43.37060998,1408.1,1408.0,0.17908149]
[1673610516745,40.16660998,1408.1,1408.0,0.17908149]
[1673610518437,24.97761272,1408.1,1408.0,0.17908149]
[1673610519472,7.16776,1408.1,1408.0,1.37208149]
[1673610519670,0.066,1408.1,1408.0,1.37208149]
[1673610519898,20.74019727,1408.2,1408.0,2.56908149]
[1673610519899,13.70464727,1408.2,1408.0,2.56908149]
[1673610520105,13.70464727,1408.2,1408.1,2.65890815]
[1673610520106,0.066,1408.2,1408.1,2.65890815]
[1673610520321,0.066,1408.4,1408.1,2.65890815]
[1673610520647,14.26604,1408.5,1408.3,1.204]
[1673610520807,6.53738727,1408.4,1408.3,1.204]
[1673610521021,6.60338727,1408.4,1408.3,1.204]
[1673610521656,6.60338727,1408.4,1408.3,1.4448]
[1673610522175,0.066,1408.4,1408.3,1.4448]
[1673610522379,7.09935,1408.6,1408.3,2.6458]
[1673610522638,7.09935,1408.6,1408.5,1.204]
[1673610522639,0.066,1408.6,1408.5,1.204]
[1673610522851,7.09912,1408.7,1408.5,1.204]
[1673610522852,7.16512,1408.7,1408.5,1.204]
[1673610523072,13.70250727,1408.7,1408.5,1.204]
[1673610523305,6.60338727,1408.7,1408.5,1.204]
[1673610523432,6.60338727,1408.7,1408.6,1.204]
[1673610523881,0.066,1408.7,1408.6,1.204]
[1673610524121,7.09874,1408.7,1408.6,1.204]
[1673610524326,7.16474,1408.7,1408.6,1.204]
[1673610525115,0.066,1408.7,1408.6,2.5284]
[1673610525346,13.70137727,1408.9,1408.6,2.5284]
[1673610525703,6.60338727,1408.9,1408.8,1.195]
[1673610526093,0.066,1408.9,1408.8,1.195]
[1673610526341,7.09773,1408.9,1408.8,1.195]
[1673610526509,7.16373,1408.9,1408.8,1.195]
[1673610527277,27.10139972,1408.9,1408.6,1.27]
[1673610527494,27.10139972,1408.9,1408.6,1.204]
[1673610527876,23.495067,1408.9,1408.6,1.204]
[1673610530174,21.35919,1408.9,1408.6,1.204]
[1673610531244,14.26146,1408.9,1408.6,1.204]
[1673610531449,14.26146,1408.9,1408.6,8.30316]
[1673610531688,14.26146,1408.9,1408.6,8.35916]
[1673610532113,14.26146,1408.9,1408.6,1.26]
[1673610532319,14.26146,1408.9,1408.6,1.204]
[1673610533904,0.066,1408.9,1408.6,3.460902]
[1673610534100,0.066,1409.0,1408.8,2.398]
[1673610534359,0.05305353,1409.1,1408.8,22.49063]
[1673610534581,0.05305353,1409.1,1408.8,15.4484]
[1673610534884,0.05305353,1409.1,1408.9,1.54484]
[1673610535043,0.05305353,1409.1,1409.0,2.4]
[1673610536777,0.05305353,1409.1,1409.0,2.39616257]
[1673610537461,0.05305353,1409.1,1409.0,1.204]
[1673610538258,0.05305353,1409.1,1409.0,9.50523]
[1673610538428,0.05305353,1409.1,1409.0,19.182983]
[1673610540197,0.05305353,1409.1,1409.0,4.988523]
[1673610540471,0.05305353,1409.1,1409.0,2.408]
[1673610541194,0.05305353,1409.1,1409.0,16.60246]
[1673610541347,0.05305353,1409.1,1409.0,16.65846]
[1673610543150,0.05305353,1409.1,1409.0,23.75569]
[1673610543382,0.05305353,1409.1,1409.0,27.96390653]
[1673610543599,0.05305353,1409.1,1409.0,35.3773649]
[1673610544348,0.05305353,1409.1,1409.0,35.4273649]
[1673610544562,0.05305353,1409.1,1409.0,40.8453649]
[1673610545973,0.05305353,1409.1,1409.0,40.9522649]
[1673610546184,0.05305353,1409.1,1409.0,40.7953649]
[1673610546507,0.05305353,1409.1,1409.0,35.3773649]
[1673610550969,0.04208748,1409.1,1409.0,35.3773649]
[1673610551408,0.05652885,1409.6,1409.1,2.01981932]
[1673610551722,0.05652885,1409.6,1409.3,28.38248]
[1673610552028,0.05652885,1409.6,1409.4,3.0]
[1673610554009,0.05652885,1409.6,1409.4,10.09521]
[1673610554214,0.05652885,1409.6,1409.4,10.14721]
[1673610554424,0.05652885,1409.6,1409.4,13.02371709]
[1673610555014,0.05652885,1409.6,1409.4,3.056]
[1673610555228,0.05652885,1409.6,1409.4,3.0]
[1673610555549,0.05652885,1409.6,1409.4,21.2856]
[1673610555762,0.05652885,1409.6,1409.4,21.3416]
[1673610555989,0.05652885,1409.6,1409.4,26.15193272]
[1673610556215,0.05652885,1409.6,1409.5,1.196]
[1673610556429,0.05652885,1409.6,1409.5,20.12021327]
[1673610556594,0.05652885,1409.6,1409.5,27.27092327]
[1673610556909,0.05652885,1409.6,1409.5,32.07025599]
[1673610557128,0.05652885,1409.6,1409.5,35.07025599]
[1673610560214,0.05652885,1409.6,1409.5,31.87725599]
[1673610561844,0.05652885,1409.6,1409.5,21.17621327]
[1673610562059,0.05652885,1409.6,1409.5,14.08150327]
[1673610563370,0.05652885,1409.6,1409.5,21.17621327]
[1673610563529,0.05652885,1409.6,1409.5,28.27092327]
[1673610564208,0.05652885,1409.6,1409.5,33.08125599]
[1673610566950,0.05652885,1409.6,1409.5,33.07925599]
[1673610567108,0.05652885,1409.6,1409.5,33.08125599]
[1673610568890,0.05652885,1409.6,1409.5,33.13125599]
[1673610569105,0.05652885,1409.6,1409.5,33.08125599]
[1673610569345,0.05652885,1409.6,1409.5,33.07816562]
[1673610569880,0.05652885,1409.6,1409.5,31.88525599]
[1673610572372,0.05652885,1409.6,1409.5,25.54413]
[1673610572583,0.05652885,1409.6,1409.5,18.44942]
[1673610572822,0.05652885,1409.6,1409.5,15.44942]
[1673610573047,0.05652885,1409.6,1409.5,14.24542]
[1673610573625,1.62452885,1409.6,1409.5,0.056]
[1673610573886,1.62452885,1409.6,1409.4,0.056]
[1673610573887,8.88638834,1409.6,1409.4,0.056]
[1673610574097,0.5322,1409.5,1409.2,8.35184]
[1673610574409,0.5322,1409.5,1409.2,0.056]
[1673610574621,0.5322,1409.5,1409.1,0.01]
[1673610574622,8.57537883,1409.5,1409.0,8.35678]
[1673610574777,8.64137883,1409.5,1409.0,8.35678]
[1673610575242,8.64137883,1409.5,1409.1,3.0]
[1673610575875,8.64137883,1409.5,1409.1,6.60633272]
[1673610576092,0.5982,1409.5,1409.1,23.17371335]
[1673610576250,0.5322,1409.5,1409.1,23.17371335]
[1673610577619,0.5322,1409.5,1409.1,23.44505769]
[1673610578036,0.5322,1409.5,1409.1,30.27043335]
[1673610578353,0.5322,1409.5,1409.1,30.54177769]
[1673610579030,4.39357033,1409.5,1409.1,30.54177769]
[1673610579711,4.39357033,1409.5,1409.1,31.60423127]
[1673610580452,11.48829033,1409.5,1409.1,31.60423127]
[1673610580702,11.55429033,1409.5,1409.1,31.60423127]
[1673610581075,4.45957033,1409.5,1409.1,31.60423127]
[1673610581288,4.39357033,1409.5,1409.1,31.60423127]
[1673610581937,0.5322,1409.5,1409.1,31.60423127]
[1673610582762,0.5322,1409.5,1409.3,2.0]
[1673610582989,21.64362885,1409.6,1409.3,2.0]
[1673610582990,22.17572885,1409.6,1409.3,2.0]
[1673610583243,22.17572885,1409.6,1409.4,14.19042]
[1673610583395,13.29042885,1409.6,1409.4,14.24642]
[1673610583602,13.29042885,1409.6,1409.4,23.676814]
[1673610583603,0.12252885,1409.6,1409.4,23.676814]
[1673610583813,0.05652885,1409.6,1409.4,23.676814]
[1673610584021,0.05652885,1409.6,1409.5,2.0]
[1673610584284,0.05652885,1409.6,1409.5,23.8436484]
[1673610584444,0.05652885,1409.6,1409.5,23.8996484]
[1673610584655,0.05652885,1409.6,1409.5,25.0936484]
[1673610585111,0.05652885,1409.6,1409.5,31.69998112]
[1673610585447,0.05652885,1409.6,1409.5,34.22978682]
[1673610585816,0.05652885,1409.6,1409.5,35.82428668]
[1673610586175,0.05652885,1409.6,1409.5,34.22978682]
[1673610589327,0.05652885,1409.6,1409.5,35.82428668]
[1673610589693,0.05652885,1409.6,1409.5,34.22978682]
[1673610589905,0.05652885,1409.6,1409.5,35.82428668]
[1673610592221,0.05652885,1409.6,1409.5,34.7618331]
[1673610593993,0.05285045,1409.6,1409.5,34.7618331]
[1673610594207,0.05285045,1409.6,1409.5,35.82255307]
[1673610594577,0.05285045,1409.6,1409.5,34.7618331]
[1673610595527,0.04195894,1409.6,1409.5,34.7618331]
[1673610595771,0.04195894,1409.6,1409.5,36.88443261]
[1673610595960,0.04195894,1409.6,1409.5,34.7618331]
[1673610596175,0.04195894,1409.6,1409.5,35.28993275]
[1673610596412,0.04195894,1409.6,1409.5,36.88022043]
[1673610596637,0.04195894,1409.6,1409.5,32.75762092]
[1673610596788,0.04195894,1409.6,1409.5,25.67170935]
[1673610597024,3.07695894,1409.6,1409.5,0.056]
[1673610597205,3.07695894,1409.6,1409.4,8.21125723]
[1673610597881,0.04195894,1409.6,1409.4,8.21125723]
[1673610599093,0.04195894,1409.6,1409.4,7.15103]
[1673610599571,0.04195894,1409.6,1409.4,0.056]
[1673610599751,2.07814744,1409.6,1409.3,4.16622723]
[1673610599961,2.07814744,1409.6,1409.3,4.06022723]
[1673610599962,9.17238744,1409.6,1409.3,4.06022723]
[1673610600192,9.23838744,1409.6,1409.3,4.06022723]
[1673610600397,9.23838744,1409.6,1409.3,11.15592723]
[1673610600398,2.14414744,1409.6,1409.3,11.15592723]
[1673610600613,2.07814744,1409.6,1409.3,11.21192723]
[1673610601297,0.20781474,1409.5,1409.3,10.1517]
[1673610601619,0.20781474,1409.5,1409.3,11.21192723]
[1673610601879,0.20781474,1409.5,1409.3,10.1517]
[1673610602499,2.07814744,1409.6,1409.3,10.1517]
[1673610603245,2.07814744,1409.6,1409.3,11.21192723]
[1673610605347,2.07814744,1409.6,1409.3,18.30764723]
[1673610605582,2.07814744,1409.6,1409.3,19.89793491]
[1673610605863,0.04195894,1409.6,1409.3,25.40336723]
[1673610606078,0.04195894,1409.6,1409.3,26.99365491]
[1673610610371,0.04195894,1409.6,1409.3,25.40336723]
[1673610611451,7.66826894,1409.6,1409.3,17.24742]
[1673610611612,7.73426894,1409.6,1409.3,17.24742]
[1673610611823,11.18925944,1409.6,1409.3,17.24742]
[1673610613956,11.18725944,1409.6,1409.3,17.24742]
[1673610614174,11.18925944,1409.6,1409.3,17.24742]
[1673610614376,17.75136944,1409.6,1409.3,10.1517]
[1673610616037,3.56294944,1409.6,1409.3,24.34314]
[1673610616289,0.04195894,1409.6,1409.3,24.34314]
[1673610617276,0.04195894,1409.6,1409.3,25.40336723]
[1673610617971,7.13619894,1409.6,1409.3,18.30764723]
[1673610618187,7.20219894,1409.6,1409.3,18.30764723]
[1673610618363,10.77710844,1409.6,1409.3,18.30764723]
[1673610619036,0.10795894,1409.6,1409.3,25.40336723]
[1673610619193,0.04195894,1409.6,1409.3,25.40336723]
[1673610620616,0.04195894,1409.6,1409.3,27.26500703]
[1673610620775,0.04195894,1409.6,1409.3,25.67471935]
[1673610620985,0.49566508,1409.5,1409.3,31.66525968]
[1673610622298,0.49566508,1409.5,1409.4,1.06022723]
[1673610622461,0.49566508,1409.5,1409.4,15.25064723]
[1673610622672,0.49566508,1409.5,1409.4,15.30664723]
[1673610625517,0.49566508,1409.5,1409.4,18.68633115]
[1673610627548,0.49566508,1409.5,1409.4,25.78154115]
[1673610628476,0.49566508,1409.5,1409.4,27.37182883]
[1673610629217,0.49566508,1409.5,1409.4,23.99214491]
[1673610630144,0.49566508,1409.5,1409.4,15.30664723]
[1673610630449,0.49566508,1409.5,1409.4,14.24642]
[1673610630700,0.49566508,1409.5,1409.4,8.21143723]
[1673610630939,0.49566508,1409.5,1409.4,7.15121]
[1673610632587,0.49566508,1409.5,1409.4,0.056]
[1673610632920,0.49566508,1409.5,1409.3,26.99311491]
[1673610634165,0.49566508,1409.5,1409.4,1.06022723]
[1673610634543,0.49566508,1409.5,1409.3,27.00311491]
[1673610634774,0.49566508,1409.5,1409.3,26.99311491]
[1673610636138,0.49566508,1409.5,1409.4,1.06022723]
[1673610638224,0.49566508,1409.5,1409.4,26.05874442]
[1673610638439,0.49566508,1409.5,1409.4,28.94208596]
[1673610642847,0.49303376,1409.5,1409.4,27.35179828]
[1673610643063,0.49303376,1409.5,1409.4,27.88468208]
[1673610643315,0.39149985,1409.5,1409.4,27.88468208]
[1673610643530,0.39149985,1409.5,1409.4,34.4910148]
[1673610643849,0.39149985,1409.5,1409.4,36.44414906]
[1673610644856,0.2078929,1409.5,1409.4,40.86832892]
[1673610645269,0.2078929,1409.5,1409.4,36.44414906]
[1673610645720,0.2078929,1409.5,1409.4,36.81124906]
[1673610646333,0.2078929,1409.5,1409.4,36.44414906]
[1673610647422,0.2078929,1409.5,1409.4,37.63814906]
[1673610648584,0.2078929,1409.5,1409.4,34.50188361]
[1673610649158,0.2078929,1409.5,1409.4,37.15568479]
[1673610650151,0.2078929,1409.5,1409.4,34.50188361]
[1673610650975,0.2078929,1409.5,1409.4,37.15476614]
[1673610651213,0.2078929,1409.5,1409.4,37.15403134]
[1673610651399,0.2078929,1409.5,1409.4,38.92606347]
[1673610651729,0.0008929,1409.5,1409.4,43.48732892]
[1673610651894,0.04195894,1409.6,1409.5,2.0011071]
[1673610652097,0.04195894,1409.6,1409.5,37.11776554]
[1673610652358,0.04195894,1409.6,1409.5,39.82574388]
[1673610652733,0.04195894,1409.6,1409.5,37.17376554]
[1673610653307,0.04195894,1409.6,1409.5,39.82460554]
[1673610654843,0.02240313,1409.6,1409.5,39.82460554]
[1673610655362,0.05196608,1409.7,1409.5,39.82460554]
[1673610655363,0.05196608,1409.7,1409.6,1.78055373]
[1673610655569,0.05196608,1409.7,1409.6,42.61593984]
[1673610655932,0.05196608,1409.7,1409.6,42.67193984]
[1673610656300,0.05196608,1409.7,1409.6,38.24775998]
[1673610658405,0.0416467,1409.7,1409.6,38.24775998]
[1673610658957,0.0416467,1409.7,1409.6,40.36687339]
[1673610659131,0.0416467,1409.7,1409.6,48.32657339]
[1673610659778,0.0416467,1409.7,1409.6,48.55657339]
[1673610660537,0.0416467,1409.7,1409.6,45.90668198]
[1673610660941,0.0416467,1409.7,1409.6,44.71368198]
[1673610661155,0.0416467,1409.7,1409.6,46.30260947]
[1673610662446,0.0416467,1409.7,1409.6,48.95250088]
[1673610663497,0.0416467,1409.7,1409.6,46.30260947]
[1673610665045,0.02225734,1409.7,1409.6,46.30260947]
[1673610666962,0.02225734,1409.7,1409.6,45.09860947]
[1673610667700,0.02225734,1409.7,1409.6,44.86860947]
[1673610668334,0.02225734,1409.7,1409.6,44.33774967]
[1673610668694,0.02225734,1409.7,1409.6,46.45686308]
[1673610669010,0.02225734,1409.7,1409.6,45.25286308]
[1673610669797,0.02225734,1409.7,1409.6,43.13374967]
[1673610670902,0.02225734,1409.7,1409.6,33.17404967]
[1673610671094,0.02225734,1409.7,1409.6,32.64466936]
[1673610671503,0.02225734,1409.7,1409.6,34.23292297]
[1673610673275,0.01785,1409.7,1409.6,34.23292297]
[1673610673499,0.01785,1409.7,1409.6,33.17404967]
[1673610673711,0.01785,1409.7,1409.6,34.23358879]
[1673610675176,0.01785,1409.7,1409.6,33.17404967]
[1673610677261,0.01785,1409.7,1409.6,33.51260935]
[1673610677642,0.01785,1409.7,1409.6,32.45414416]
[1673610679364,0.01785,1409.7,1409.6,31.39349594]
[1673610680235,0.01785,1409.7,1409.6,27.78716322]
[1673610680448,1.48485,1409.7,1409.6,21.75403902]
[1673610680625,1.48485,1409.7,1409.6,19.89443329]
[1673610680835,0.01785,1409.7,1409.6,21.4826869]
[1673610681093,3.05285,1409.7,1409.6,20.4216011]
[1673610681307,0.01785,1409.7,1409.6,20.4216011]
[1673610689946,0.01785,1409.7,1409.6,21.48360084]
[1673610691331,0.01785,1409.7,1409.6,28.57781084]
[1673610693381,0.01785,1409.7,1409.6,30.58661424]
[1673610694681,0.01785,1409.7,1409.6,34.99515888]
[1673610694904,0.01432098,1409.7,1409.6,34.99515888]
[1673610695101,0.01432098,1409.7,1409.6,37.64505029]
[1673610697083,0.01432098,1409.7,1409.6,35.52593688]
[1673610697291,0.01432098,1409.7,1409.6,37.64963351]
[1673610697738,0.01432098,1409.7,1409.6,34.9997421]
[1673610697924,0.01432098,1409.7,1409.6,29.9155523]
[1673610698142,0.01432098,1409.7,1409.6,29.64420018]
[1673610698578,0.01432098,1409.7,1409.6,27.52050355]
[1673610698775,0.01432098,1409.7,1409.6,29.64420018]
[1673610699636,0.01432098,1409.7,1409.6,33.2505329]
[1673610699962,0.01432098,1409.7,1409.6,37.82267624]
[1673610700598,0.01432098,1409.7,1409.6,29.91573038]
[1673610700826,3.04932098,1409.7,1409.6,22.55016826]
[1673610701035,4.55632098,1409.7,1409.6,2.70707554]
[1673610701352,4.55632098,1409.7,1409.6,2.65107554]
[1673610702365,4.55632098,1409.7,1409.6,1.58892749]
[1673610702553,11.65002098,1409.7,1409.6,1.58892749]
[1673610702769,11.71602098,1409.7,1409.6,1.58892749]
[1673610703398,7.41723108,1409.7,1409.6,1.58892749]
[1673610703814,4.62232098,1409.7,1409.6,1.58892749]
[1673610704172,4.55632098,1409.7,1409.6,1.58892749]
[1673610704532,1.52132098,1409.7,1409.6,8.68313749]
[1673610704750,1.52132098,1409.7,1409.6,8.73913749]
[1673610705001,1.52132098,1409.7,1409.6,9.80128554]
[1673610705808,1.88466308,1409.7,1409.6,9.80128554]
[1673610706476,1.88466308,1409.7,1409.6,2.70707554]
[1673610706692,1.88466308,1409.7,1409.6,2.65107554]
[1673610706876,0.01432098,1409.7,1409.6,25.52682968]
[1673610707080,0.01432098,1409.7,1409.6,18.48861968]
[1673610707821,0.01432098,1409.7,1409.6,25.58282968]
[1673610710049,0.01432098,1409.7,1409.6,24.52068163]
[1673610710481,0.01432098,1409.7,1409.6,16.8957445]
[1673610710637,1.48132098,1409.7,1409.6,16.8957445]
[1673610711410,1.48132098,1409.7,1409.6,9.8015345]
[1673610711625,1.62945308,1409.7,1409.6,8.73913749]
[1673610711958,3.13345308,1409.7,1409.6,1.64492749]
[1673610712147,3.13345308,1409.7,1409.6,1.58892749]
[1673610712323,5.17655308,1409.7,1409.6,1.58892749]
[1673610712534,5.24255308,1409.7,1409.6,1.58892749]
[1673610713287,4.71045308,1409.7,1409.6,1.58892749]
[1673610713621,4.64445308,1409.7,1409.6,1.58892749]
[1673610713941,18.83185308,1409.7,1409.6,1.58892749]
[1673610714250,19.42995308,1409.7,1409.6,1.58892749]
[1673610715663,26.52365308,1409.7,1409.6,1.58892749]
[1673610722626,25.99155308,1409.7,1409.6,1.58892749]
[1673610723620,17.39385308,1409.7,1409.6,1.58892749]
[1673610725522,17.92595308,1409.7,1409.6,1.58892749]
[1673610725730,17.39385308,1409.7,1409.6,1.58892749]
[1673610726538,1.73945308,1409.7,1409.6,1.58892749]
[1673610726753,1.52532098,1409.7,1409.6,1.58892749]
[1673610727016,3.04932098,1409.7,1409.6,1.58892749]
[1673610733178,0.01432098,1409.7,1409.6,1.58892749]
[1673610733825,0.01210599,1409.7,1409.6,16.8397445]
[1673610734036,0.01210599,1409.7,1409.6,16.8957445]
[1673610734477,0.01210599,1409.7,1409.6,20.37698174]
[1673610734687,0.01210599,1409.7,1409.6,27.47119174]
[1673610735181,0.01210599,1409.7,1409.6,20.37698174]
[1673610735540,0.01210599,1409.7,1409.6,21.97010588]
[1673610739226,0.01210599,1409.7,1409.6,29.06431588]
[1673610740577,0.01210599,1409.7,1409.6,29.061104]
[1673610741482,1.47910599,1409.7,1409.6,29.061104]
[1673610741854,1.47910599,1409.7,1409.6,2.70411262]
[1673610742155,1.47910599,1409.7,1409.6,1.58571561]
[1673610743873,23.0844,1409.8,1409.6,1.58571561]
[1673610745755,23.0844,1409.8,1409.6,2.64811262]
[1673610746174,27.06583844,1409.8,1409.6,2.64811262]
[1673610746339,27.06583844,1409.8,1409.6,1.58571561]
[1673610746819,27.06583844,1409.8,1409.6,2.64811262]
[1673610747023,27.06583844,1409.8,1409.6,1.06239701]
[1673610748067,25.85983844,1409.8,1409.6,1.06239701]
[1673610748238,2.58598384,1409.7,1409.6,1.06239701]
[1673610748447,2.58598384,1409.7,1409.5,2.65552115]
[1673610749120,25.85983844,1409.8,1409.6,1.06239701]
[1673610749293,4.57953844,1409.8,1409.6,1.06239701]
[1673610749485,4.57953844,1409.8,1409.6,15.25079701]
[1673610749486,0.5321,1409.8,1409.6,15.25079701]
[1673610749741,21.65281443,1409.9,1409.6,15.25079701]
[1673610749742,22.18481443,1409.9,1409.6,15.30679701]
[1673610749897,13.50609481,1409.9,1409.6,16.89992115]
[1673610750961,13.50609481,1409.9,1409.6,19.71272893]
[1673610751315,20.59889481,1409.9,1409.6,9.80571115]
[1673610751584,28.22369481,1409.9,1409.6,1.11839701]
[1673610751750,28.22369481,1409.9,1409.6,1.06239701]
[1673610752174,29.27758443,1409.9,1409.6,1.06239701]
[1673610752690,28.22369481,1409.9,1409.6,1.06239701]
[1673610753433,32.97520637,1409.9,1409.6,9.74972115]
[1673610753593,28.22369481,1409.9,1409.6,9.80572115]
[1673610754452,14.03809481,1409.9,1409.6,16.89993115]
[1673610754638,13.50609481,1409.9,1409.7,1.06239701]
[1673610755000,13.50609481,1409.9,1409.7,8.15587701]
[1673610755209,13.50609481,1409.9,1409.7,8.21187701]
[1673610755373,13.50609481,1409.9,1409.7,10.82458779]
[1673610755581,13.50609481,1409.9,1409.7,19.50941193]
[1673610755900,13.50609481,1409.9,1409.7,19.51141193]
[1673610756905,13.50609481,1409.9,1409.7,17.91828779]
[1673610757362,13.50609481,1409.9,1409.7,19.51141193]
[1673610757573,0.13059481,1409.9,1409.8,1.95114119]
[1673610757828,0.06459481,1409.9,1409.8,18.7139382]
[1673610758044,0.06459481,1409.9,1409.8,18.7699382]
[1673610759517,0.06459481,1409.9,1409.8,18.86306234]
[1673610759728,0.06459481,1409.9,1409.8,17.2699382]
[1673610759894,0.06459481,1409.9,1409.8,15.30479701]
[1673610765613,0.06459481,1409.9,1409.8,22.39799701]
[1673610770844,0.06459481,1409.9,1409.8,25.95672414]
[1673610771074,0.06459481,1409.9,1409.8,28.95672414]
[1673610771294,0.06459481,1409.9,1409.8,29.22807626]
[1673610771477,0.06459481,1409.9,1409.8,33.59985377]
[1673610773965,0.06459481,1409.9,1409.8,35.7235504]
[1673610774179,0.06459481,1409.9,1409.8,33.59985377]
[1673610776098,0.06459481,1409.9,1409.8,37.20618649]
[1673610779803,0.06459481,1409.9,1409.8,26.05341597]
[1673610779990,0.06459481,1409.9,1409.8,21.68163846]
[1673610780813,0.06459481,1409.9,1409.8,31.32040898]
[1673610781266,0.06459481,1409.9,1409.8,33.44410561]
[1673610781267,0.05185945,1409.9,1409.8,33.44410561]
[1673610782519,0.05185945,1409.9,1409.8,33.44213916]
[1673610782736,0.05185945,1409.9,1409.8,38.82783329]
[1673610784929,0.05185945,1409.9,1409.8,35.22150057]
[1673610785173,0.05185945,1409.9,1409.8,28.77302203]
[1673610785928,0.05185945,1409.9,1409.8,27.18186434]
[1673610786098,0.05185945,1409.9,1409.8,30.78819706]
[1673610786310,0.05185945,1409.9,1409.8,32.37935475]
[1673610787031,0.05185945,1409.9,1409.8,30.86535475]
[1673610787240,0.05185945,1409.9,1409.8,36.09215097]
[1673610788092,0.05185945,1409.9,1409.8,35.03123875]
[1673610789467,0.05185945,1409.9,1409.8,37.15493538]
[1673610789876,0.05185945,1409.9,1409.8,37.07777769]
[1673610790236,0.05185945,1409.9,1409.8,38.66980008]
[1673610790479,0.05185945,1409.9,1409.8,37.07777769]
[1673610790974,0.05185945,1409.9,1409.8,39.11397247]
[1673610792966,0.05185945,1409.9,1409.8,45.03804919]
[1673610793143,0.05185945,1409.9,1409.8,41.10734651]
[1673610793144,0.02776748,1409.9,1409.8,41.10734651]
[1673610794227,0.02776748,1409.9,1409.8,37.97108106]
[1673610794671,0.02776748,1409.9,1409.8,41.10734651]
[1673610795314,0.02776748,1409.9,1409.8,37.97108106]
[1673610795459,0.02776748,1409.9,1409.8,37.98806598]
[1673610796345,0.02231481,1409.9,1409.8,41.12433143]
[1673610798103,0.02231481,1409.9,1409.8,45.54140815]
[1673610798324,0.02231481,1409.9,1409.8,41.12433143]
[1673610798576,0.02231481,1409.9,1409.8,37.98806598]
[1673610800005,0.02231481,1409.9,1409.8,43.2944516]
[1673610801786,0.02231481,1409.9,1409.8,42.3724516]
[1673610807806,0.02231481,1409.9,1409.8,39.71920018]
[1673610809157,0.02231481,1409.9,1409.8,42.37352172]
[1673610809376,0.02231481,1409.9,1409.8,39.71920018]
[1673610809945,0.02231481,1409.9,1409.8,38.51420018]
[1673610810095,0.02231481,1409.9,1409.8,41.65046563]
[1673610810307,0.01195561,1409.9,1409.8,41.65046563]
[1673610811274,0.01195561,1409.9,1409.8,38.51420018]
[1673610811431,0.00961152,1409.9,1409.8,38.51420018]
[1673610812370,0.00961152,1409.9,1409.8,41.65046563]
[1673610813304,0.00961152,1409.9,1409.8,38.51420018]
[1673610815098,0.00961152,1409.9,1409.8,41.65046563]
[1673610816762,0.00961152,1409.9,1409.8,38.51420018]
[1673610816973,0.00961152,1409.9,1409.8,41.16917896]
[1673610817313,0.00961152,1409.9,1409.8,41.4202691]
[1673610818551,0.00961152,1409.9,1409.8,39.93816772]
[1673610818760,1.43861152,1409.9,1409.8,33.64956206]
[1673610818973,1.43861152,1409.9,1409.8,26.53937714]
[1673610819192,1.43861152,1409.9,1409.8,19.17482502]
[1673610819393,1.43861152,1409.9,1409.8,17.05059368]
[1673610819679,1.70297267,1409.9,1409.8,6.95739368]
[1673610819870,4.63397267,1409.9,1409.8,5.36411298]
[1673610820013,18.81937267,1409.9,1409.8,5.36411298]
[1673610820205,17.45637267,1409.9,1409.8,0.002]
[1673610820416,34.35680539,1409.9,1409.6,2.65556468]
[1673610820657,1.205,1409.7,1409.6,2.65556468]
[1673610820887,1.7371,1409.7,1409.6,1.06228398]
[1673610821257,1.7371,1409.7,1409.5,2.72156468]
[1673610821430,1.7371,1409.7,1409.4,7.49991926]
[1673610821431,4.41,1409.6,1409.4,7.49991926]
[1673610821677,1.7362,1409.5,1409.4,6.37563528]
[1673610821926,1.7362,1409.5,1409.4,7.43740834]
[1673610821927,2.939751,1409.5,1409.4,7.43740834]
[1673610822128,2.939751,1409.5,1409.4,4.78235458]
[1673610822307,1.735751,1409.5,1409.4,5.84012764]
[1673610822531,1.735751,1409.5,1409.4,4.68235458]
[1673610822779,1.735751,1409.5,1409.4,4.67835458]
[1673610824744,4.743751,1409.5,1409.4,4.67835458]
[1673610824945,18.400971,1409.5,1409.4,4.67835458]
[1673610825217,18.466971,1409.5,1409.4,4.67835458]
[1673610828076,25.561681,1409.5,1409.4,4.67835458]
[1673610832060,9.870261,1409.5,1409.4,4.67835458]
[1673610832425,2.775551,1409.5,1409.4,4.67835458]
[1673610832576,2.709551,1409.5,1409.4,4.67835458]
[1673610833557,1.506,1409.5,1409.4,4.67835458]
[1673610840410,1.506,1409.5,1409.4,4.62835458]
[1673610843143,1.506,1409.5,1409.4,6.62835458]
[1673610843350,1.506,1409.5,1409.4,4.63235458]
[1673610843582,13.2336,1409.6,1409.4,4.62835458]